bitfinex-derivatives/quotes_ETHF0:USTF0_20250604
["timestamp","ask_amount","ask_price","bid_price","bid_amount"]
[1749049891707,0.75699,2640.9,2640.7,0.75702]
[1749049891907,0.75696,2641.0,2640.8,0.75699]
[1749049892306,0.9019,2641.3,2641.2,0.75688]
[1749049892503,1.65877,2641.3,2641.1,0.75689]
[1749049892698,1.65877,2641.3,2640.9,3.2078]
[1749049892906,0.9019,2641.3,2641.2,0.75688]
[1749049893104,1.57953,2641.4,2641.3,0.75685]
[1749049893296,1.57953,2641.4,2641.0,2.0983]
[1749049893603,0.75686,2641.3,2641.0,2.0983]
[1749049893803,0.8227,2641.4,2641.2,0.75687]
[1749049894003,1.57954,2641.4,2641.2,0.75687]
[1749049894408,0.8457,2641.7,2641.0,2.0983]
[1749049894612,0.8457,2641.7,2641.0,3.99063]
[1749049894613,0.75678,2641.6,2641.0,3.99063]
[1749049894910,2.91256,2641.7,2641.5,0.7568]
[1749049895103,0.75677,2641.6,2641.5,0.7568]
[1749049895808,0.75677,2641.6,2641.4,0.7568]
[1749049895809,0.75678,2641.6,2641.4,0.7568]
[1749049896103,0.75678,2641.6,2641.2,3.2078]
[1749049896304,0.75678,2641.6,2641.4,0.7568]
[1749049897503,2.1558,2641.7,2641.4,0.7568]
[1749049897708,2.91256,2641.7,2641.6,0.75677]
[1749049898008,2.1558,2641.7,2641.5,0.75678]
[1749049898411,0.75677,2641.6,2641.5,0.75678]
[1749049899108,0.75677,2641.6,2641.2,6.2994]
[1749049899413,0.75677,2641.6,2641.5,0.7568]
[1749049900711,3.21348193,2641.8,2641.7,0.75674]
[1749049901114,3.97019193,2641.8,2641.7,0.75674]
[1749049901314,3.21348193,2641.8,2641.7,0.75674]
[1749049901615,0.00568193,2641.8,2641.7,0.75674]
[1749049903814,4.963,2642.6,2642.5,0.75651]
[1749049904010,3.2078,2642.7,2642.6,0.75648]
[1749049904319,2.1626,2643.1,2643.0,0.75637]
[1749049905918,2.1626,2643.1,2642.8,0.00568193]
[1749049906314,0.7564,2642.9,2642.8,0.00568193]
[1749049906513,5.805,2643.0,2642.8,0.00568193]
[1749049906716,5.805,2643.0,2642.9,0.7564]
[1749049906926,5.797,2643.0,2642.9,0.7564]
[1749049907315,1.26798193,2643.3,2642.8,1.89674193]
[1749049907615,0.00568193,2643.3,2643.2,0.75631]
[1749049910116,0.00568193,2643.3,2643.2,1.99941]
[1749049912624,0.00568193,2643.3,2643.2,0.75631]
[1749049914323,0.00568193,2643.3,2643.1,3.2078]
[1749049914524,0.76198193,2643.3,2643.2,0.75631]
[1749049914826,0.00568193,2643.3,2643.2,0.75631]
[1749049915021,2.08107193,2643.3,2643.2,0.75631]
[1749049915225,1.32478193,2643.3,2643.2,0.75631]
[1749049915423,0.00568193,2643.3,2643.2,0.75631]
[1749049917018,0.76197193,2643.3,2643.2,0.75631]
[1749049917224,2.04797193,2643.3,2643.2,0.75631]
[1749049917615,0.75631,2643.2,2643.1,3.2078]
[1749049917822,2.04231,2643.2,2643.1,3.96414]
[1749049918713,2.04231,2643.2,2643.1,3.2078]
[1749049918918,2.04231,2643.2,2643.1,3.96414]
[1749049919316,0.7564,2642.9,2642.8,0.00568193]
[1749049919624,3.9642,2642.9,2642.8,0.00568193]
[1749049920129,6.9357,2642.9,2642.8,0.76211193]
[1749049920432,3.2078,2642.9,2642.8,0.76211193]
[1749049920826,3.9642,2642.9,2642.8,0.76211193]
[1749049921131,5.7084,2643.0,2642.9,0.7564]
[1749049921631,0.7564,2642.9,2642.8,0.76209193]
[1749049922127,1.2803,2642.9,2642.8,0.76209193]
[1749049922327,2.0367,2642.9,2642.8,0.76209193]
[1749049923024,2.0367,2642.9,2642.8,0.00568193]
[1749049923225,7.0367,2642.9,2642.8,0.00568193]
[1749049923528,2.0367,2642.9,2642.8,0.00568193]
[1749049924231,2.0367,2642.9,2642.8,0.76211193]
[1749049924524,1.2803,2642.9,2642.8,0.76211193]
[1749049924724,0.7564,2642.9,2642.8,0.76211193]
[1749049924925,0.7564,2642.9,2642.8,0.00568193]
[1749049925130,1.9883,2642.9,2642.8,0.00568193]
[1749049925720,0.75655,2642.4,2642.1,3.2078]
[1749049926030,0.75654,2642.5,2642.4,0.75654]
[1749049926431,0.75655,2642.4,2642.3,0.75655]
[1749049926728,0.75652,2642.5,2642.4,0.75652]
[1749049926930,6.9985,2642.6,2642.2,42.69149]
[1749049926931,2.80201,2642.6,2642.5,0.75651]
[1749049927123,6.55619,2642.6,2642.5,0.75651]
[1749049927727,5.7997,2642.6,2642.5,0.75651]
[1749049928330,6.55619,2642.6,2642.5,0.75651]
[1749049929332,0.75652,2642.5,2642.4,0.75652]
[1749049929533,6.55621,2642.6,2642.5,0.75651]
[1749049929731,6.55621,2642.6,2642.2,42.6915]
[1749049929732,0.75652,2642.5,2642.4,0.75652]
[1749049929931,1.64892,2642.5,2642.4,0.75652]
[1749049930131,0.8924,2642.5,2642.2,40.8]
[1749049930329,2.1902,2642.5,2642.2,40.8]
[1749049930529,2.1902,2642.5,2642.4,0.75654]
[1749049931326,2.94671,2642.5,2642.4,0.75654]
[1749049931528,0.8924,2642.5,2642.4,0.75654]
[1749049931735,1.6032,2642.6,2642.2,42.6915]
[1749049931736,0.8467,2642.6,2642.5,0.75651]
[1749049932233,0.8916,2642.8,2642.7,0.75646]
[1749049932431,3.2078,2643.0,2642.9,0.7564]
[1749049932631,5.7755,2643.2,2643.1,0.75634]
[1749049933037,4.10508193,2643.3,2643.2,0.75631]
[1749049933235,9.05808193,2643.3,2643.2,0.75631]
[1749049933630,5.85028193,2643.3,2643.2,0.75631]
[1749049934739,6.60657193,2643.3,2643.2,0.75631]
[1749049934928,5.85028193,2643.3,2643.2,0.75631]
[1749049936438,6.60657193,2643.3,2643.2,0.75631]
[1749049937539,9.05808193,2643.3,2642.7,1.89114]
[1749049937839,0.75638,2643.0,2642.9,0.75638]
[1749049938040,0.75637,2643.0,2642.9,0.75638]
[1749049938537,1.2343,2643.2,2642.5,3.94257]
[1749049938741,1.89086,2643.1,2642.8,0.75642]
[1749049938935,0.75644,2642.8,2642.7,0.75643]
[1749049939238,5.69941,2642.9,2642.8,0.75643]
[1749049939541,4.943,2642.9,2642.8,0.75643]
[1749049939741,5.6994,2642.9,2642.8,0.75643]
[1749049939933,0.75644,2642.8,2642.7,0.75644]
[1749049940127,4.943,2642.9,2642.4,3.2078]
[1749049940335,0.7565,2642.6,2642.5,0.75649]
[1749049940533,8.06831,2642.9,2642.4,3.2078]
[1749049940534,0.75651,2642.5,2642.4,3.2078]
[1749049940736,0.75657,2642.3,2642.2,40.8]
[1749049940933,0.8845,2642.5,2642.1,0.76230193]
[1749049941142,0.75656,2642.4,2642.2,0.7566]
[1749049941345,0.75657,2642.3,2642.2,40.8]
[1749049942239,0.8849,2642.4,2642.3,0.75657]
[1749049942449,3.2078,2642.7,2642.2,40.8]
[1749049942740,0.75654,2642.5,2642.3,0.75655]
[1749049942942,5.69951,2642.6,2642.4,0.75652]
[1749049943537,0.75651,2642.5,2642.4,0.75652]
[1749049943845,0.75654,2642.4,2642.3,1.60757]
[1749049944239,0.75654,2642.5,2642.4,0.75654]
[1749049944539,0.75654,2642.4,2642.3,1.60755]
[1749049944739,0.75654,2642.5,2642.3,1.60755]
[1749049945140,4.943,2642.6,2642.3,0.851]
[1749049945335,0.7566,2642.2,2642.1,0.00568193]
[1749049945537,5.7006,2642.2,2642.1,0.00568193]
[1749049946236,5.7006,2642.2,2641.5,0.8274]
[1749049946237,0.75677,2641.6,2641.5,0.8274]
[1749049946438,0.75677,2641.6,2641.5,1.5842]
[1749049946634,5.70073,2641.8,2641.7,0.75674]
[1749049947250,5.70073,2641.8,2641.6,0.75675]
[1749049947441,5.70073,2641.8,2641.7,0.75674]
[1749049947753,0.75674,2641.7,2641.6,0.75675]
[1749049948241,0.00568193,2642.0,2641.5,41.63308193]
[1749049948442,5.70636193,2642.0,2641.9,0.75669]
[1749049948849,0.75669,2641.9,2641.6,3.2078]
[1749049949047,4.94968193,2642.0,2641.6,3.96455]
[1749049949247,0.75673,2641.8,2641.6,3.96455]
[1749049949447,0.7567,2641.9,2641.6,3.2078]
[1749049949746,4.94968193,2642.0,2641.6,3.2078]
[1749049949747,5.70635193,2642.0,2641.8,0.7567]
[1749049949948,0.00568193,2642.0,2641.9,0.75669]
[1749049950750,0.00568193,2642.0,2641.9,3.96449]
[1749049951349,0.76234193,2642.0,2641.9,3.2078]
[1749049951550,0.75671,2641.8,2641.7,2.0345]
[1749049951750,0.75674,2641.7,2641.6,0.75674]
[1749049952251,0.75674,2641.7,2641.6,0.75677]
[1749049952949,0.75674,2641.8,2641.6,0.75677]
[1749049953252,0.00568193,2642.0,2641.9,0.75669]
[1749049953754,0.00568193,2642.0,2641.9,5.75669]
[1749049953950,3.9644,2642.2,2642.1,0.75663]
[1749049954244,3.2078,2642.2,2642.1,0.75663]
[1749049954851,3.9644,2642.2,2642.1,0.75663]
[1749049955250,0.7566,2642.2,2642.1,0.75663]
[1749049955946,0.87638193,2642.4,2641.9,1.89171]
[1749049956143,0.00568193,2642.4,2642.3,0.75657]
[1749049956452,0.76223193,2642.4,2642.3,0.75657]
[1749049956647,0.00568193,2642.4,2642.3,0.75657]
[1749049957852,0.00568193,2642.4,2642.3,1.95887]
[1749049958153,0.76222193,2642.4,2642.3,40.8]
[1749049959253,0.00568193,2642.4,2642.3,41.55657]
[1749049964043,5.7735,2642.9,2642.8,0.75643]
[1749049966750,6.5299,2642.9,2642.8,0.75643]
[1749049967054,5.7735,2642.9,2642.8,0.75643]
[1749049968258,5.7735,2642.9,2642.7,0.75643]
[1749049968559,0.75646,2642.8,2642.7,0.75643]
[1749049968860,6.52992,2642.9,2642.8,0.75643]
[1749049969255,5.7735,2642.9,2642.8,0.75643]
[1749049969856,41.36348193,2643.1,2643.0,0.75637]
[1749049969857,0.00568193,2643.1,2643.0,0.75637]
[1749049971960,0.76202193,2643.1,2643.0,0.75637]
[1749049972156,0.00568193,2643.1,2642.6,2.7614]
[1749049972458,2.06774193,2643.1,2643.0,0.75637]
[1749049976647,1.31138193,2643.1,2643.0,0.75637]
[1749049977451,3.00136977,2644.0,2643.4,0.75626]
[1749049977653,0.75611,2643.9,2643.8,3.2078]
[1749049978660,3.2078,2644.0,2643.6,0.00568193]
[1749049978854,0.75617,2643.7,2643.6,0.00568193]
[1749049979050,0.8415,2643.8,2643.6,0.00568193]
[1749049979051,1.59765,2643.8,2643.6,0.00568193]
[1749049979259,5.7949,2643.7,2643.6,0.76188193]
[1749049981763,5.7949,2643.7,2643.6,0.00568193]
[1749049982266,5.7949,2643.7,2643.1,2.78692]
[1749049982267,10.7949,2643.7,2643.2,0.75631]
[1749049982459,0.75626,2643.4,2643.2,0.75631]
[1749049982659,5.8065,2643.3,2643.2,0.75631]
[1749049982955,4.934,2643.3,2643.2,0.75631]
[1749049983158,4.934,2643.3,2643.2,2.07921]
[1749049986768,4.934,2643.3,2643.2,0.75631]
[1749049988266,4.934,2643.3,2643.2,2.01461]
[1749049989571,0.75631,2643.2,2643.1,3.2078]
[1749049990165,1.61421,2643.2,2643.1,3.2078]
[1749049990768,2.89401,2643.2,2643.1,3.2078]
[1749049991467,2.89401,2643.2,2643.1,3.96414]
[1749049991966,2.89401,2643.2,2643.1,3.2078]
[1749049992367,2.89401,2643.2,2643.1,3.96414]
[1749049992567,2.89401,2643.2,2643.1,3.2078]
[1749049992968,2.1377,2643.2,2643.1,3.96414]
[1749049993165,0.8579,2643.2,2643.1,3.96414]
[1749049993370,4.934,2643.3,2643.2,0.75631]
[1749049993571,1.63905,2643.5,2643.4,0.75626]
[1749049993770,1.63905,2643.5,2643.4,3.96406]
[1749049993968,0.8828,2643.5,2643.4,3.96406]
[1749049994570,1.63903,2643.5,2643.4,3.96406]
[1749049994778,0.8828,2643.5,2643.4,3.96406]
[1749049996973,4.934,2643.7,2643.6,0.7562]
[1749050000776,0.75613,2643.9,2643.5,1.89057]
[1749050000973,0.00568193,2644.1,2644.0,0.75608]
[1749050001172,0.00568193,2644.1,2644.0,3.96388]
[1749050003287,1.93e-06,2644.1,2644.0,8.96388]
[1749050003483,1.6575,2645.4,2645.2,0.75572]
[1749050003682,4.929,2645.3,2645.1,3.2078]
[1749050003881,3.2078,2645.6,2645.5,0.75566]
[1749050004085,0.75563,2645.6,2645.5,44.0078]
[1749050004384,0.75563,2645.6,2645.5,41.09723739]
[1749050004385,3.96343,2645.6,2645.5,41.09723739]
[1749050004581,11.98253,2645.6,2645.5,41.09723739]
[1749050004776,7.05453,2645.6,2645.5,41.09723739]
[1749050004978,11.98253,2645.6,2645.5,41.09723739]
[1749050005180,6.98253,2645.6,2645.5,41.09723739]
[1749050005693,0.75563,2645.6,2645.5,41.09723739]
[1749050005882,5.68363,2645.6,2645.5,41.09723739]
[1749050006282,0.15416629,2645.7,2645.5,44.30503739]
[1749050006588,4.928,2645.6,2645.5,44.30503739]
[1749050007087,4.928,2645.6,2645.5,41.09723739]
[1749050007389,0.90977629,2645.7,2645.5,41.09723739]
[1749050007692,0.15416629,2645.7,2645.5,44.30503739]
[1749050007984,0.15416629,2645.7,2645.5,46.29707739]
[1749050008190,0.15416629,2645.7,2645.6,0.75563]
[1749050008490,0.15416629,2645.7,2645.5,45.54143739]
[1749050008694,0.15416629,2645.7,2645.6,0.75563]
[1749050008986,38.14480024,2646.7,2645.5,9.74143739]
[1749050009186,0.75543,2646.3,2646.2,3.2078]
[1749050009577,0.75543,2646.3,2646.2,44.0078]
[1749050010396,0.75551,2646.0,2645.9,3.2078]
[1749050010596,6.81481,2646.0,2645.6,3.2078]
[1749050010792,4.926,2646.0,2645.8,0.75557]
[1749050010992,0.75553,2646.0,2645.9,3.2078]
[1749050011493,0.75551,2646.0,2645.9,43.6078]
[1749050011695,5.8255,2646.2,2645.9,44.9312]
[1749050011891,0.8995,2646.2,2645.9,44.9312]
[1749050012192,0.75551,2646.0,2645.9,44.9312]
[1749050012388,0.8995,2646.2,2645.9,44.36333]
[1749050012595,0.75551,2646.1,2645.9,44.36334]
[1749050012796,4.926,2646.4,2646.0,1.3234]
[1749050013098,0.75544,2646.3,2646.2,3.2078]
[1749050013294,5.68141,2646.4,2646.2,3.2078]
[1749050013793,0.75543,2646.3,2646.2,3.2078]
[1749050014790,0.00567022,2646.5,2646.2,3.2078]
[1749050014990,4.93067022,2646.5,2646.3,0.7554]
[1749050015195,4.93067022,2646.5,2646.2,3.96324]
[1749050015391,4.93067022,2646.5,2646.2,3.2078]
[1749050015593,4.93067022,2646.5,2646.4,0.7554]
[1749050016288,0.00567022,2646.5,2646.4,0.7554]
[1749050016786,0.00567022,2646.5,2646.2,3.2078]
[1749050016989,0.00567022,2646.5,2646.4,0.7554]
[1749050017588,0.00567022,2646.5,2646.2,3.2078]
[1749050017789,0.00567022,2646.5,2646.4,0.7554]
[1749050018488,0.00567022,2646.5,2646.4,1.9583]
[1749050018685,0.00567022,2646.5,2646.4,42.3583]
[1749050021084,4.924,2646.8,2646.2,3.2078]
[1749050021289,0.8434,2647.0,2646.2,4.0951]
[1749050021486,0.75533,2646.7,2646.5,0.75537]
[1749050021695,0.8434,2647.0,2646.9,0.75526]
[1749050021894,0.75521,2647.1,2646.9,3.96303]
[1749050022100,0.83797232,2647.3,2647.2,0.75517]
[1749050022300,0.00377232,2647.3,2647.2,3.96297]
[1749050022595,0.75501,2647.8,2647.6,0.75505]
[1749050022791,3.2078,2648.1,2647.7,29.4]
[1749050023000,0.755,2647.8,2647.7,29.4]
[1749050024090,1.2996,2648.0,2647.7,29.4]
[1749050024294,0.75499,2647.9,2647.7,29.4]
[1749050024496,23.01,2648.1,2647.7,29.4]
[1749050024693,0.75491,2648.1,2648.0,3.2078]
[1749050024897,1.6334,2648.2,2648.0,3.2078]
[1749050025194,10.0187,2648.7,2648.0,3.2078]
[1749050025195,3.2078,2649.0,2648.0,3.2078]
[1749050025397,0.75483,2648.4,2648.3,3.2078]
[1749050025592,0.8785,2648.9,2648.3,4.4937]
[1749050025791,0.75483,2648.4,2648.3,1.2859]
[1749050025995,0.75483,2648.4,2648.3,29.4]
[1749050026193,0.75482,2648.5,2648.3,32.6078]
[1749050026396,0.7548,2648.5,2648.3,32.6078]
[1749050026592,0.75483,2648.4,2648.3,32.6078]
[1749050026797,1.95943,2648.4,2648.3,32.6078]
[1749050027199,1.2046,2648.4,2648.3,32.6078]
[1749050027398,1.95943,2648.4,2648.3,32.6078]
[1749050027704,0.75483,2648.4,2648.3,32.6078]
[1749050028098,0.8223,2648.6,2648.3,32.6078]
[1749050028303,0.75483,2648.4,2648.3,32.6078]
[1749050028606,0.75481,2648.5,2648.3,32.6078]
[1749050028805,2.0269,2648.6,2648.3,32.6078]
[1749050028991,2.0269,2648.6,2648.3,29.4]
[1749050029302,0.75483,2648.4,2648.3,29.4]
[1749050029800,2.0269,2648.6,2648.3,29.4]
[1749050030001,0.75482,2648.5,2648.3,29.4]
[1749050030306,23.89282,2648.5,2648.4,3.2078]
[1749050030502,1.57709,2648.6,2648.4,3.2078]
[1749050030697,24.71409,2648.6,2648.4,3.2078]
[1749050030902,0.7548,2648.5,2648.4,3.2078]
[1749050031805,1.9998,2648.5,2648.4,3.2078]
[1749050032109,5.7318,2648.5,2648.4,3.2078]
[1749050032407,23.8758,2648.5,2648.4,3.2078]
[1749050032898,0.75483,2648.4,2648.3,29.4]
[1749050033105,0.75486,2648.3,2648.2,0.00567022]
[1749050033398,0.75486,2648.3,2648.2,2.2e-07]
[1749050033605,5.75486,2648.3,2648.2,2.2e-07]
[1749050033804,7.02936,2648.3,2648.2,2.2e-07]
[1749050034906,25.17636,2648.3,2648.2,2.2e-07]
[1749050035907,7.02936,2648.3,2648.2,2.2e-07]
[1749050036101,30.15436,2648.3,2648.2,2.2e-07]
[1749050036804,7.02936,2648.3,2648.2,2.2e-07]
[1749050037404,9.99791241,2648.3,2648.2,2.2e-07]
[1749050037603,30.15336,2648.3,2648.2,2.2e-07]
[1749050038003,30.15936,2648.3,2648.2,2.2e-07]
[1749050038199,0.75486,2648.3,2648.2,2.2e-07]
[1749050038406,5.73186,2648.3,2648.2,3.20780022]
[1749050039902,0.00567,2648.5,2648.3,0.75485]
[1749050040107,4.98267,2648.5,2648.2,3.20780022]
[1749050040408,5.7375,2648.5,2648.3,1.2535]
[1749050040615,5.73749,2648.5,2648.3,1.2535]
[1749050040811,4.98267,2648.5,2648.3,1.2535]
[1749050041110,0.00567,2648.5,2648.4,0.8857]
[1749050041300,0.00567,2648.5,2648.4,1.64053]
[1749050042301,0.00567,2648.5,2648.4,31.04053]
[1749050042708,43.065,2649.1,2648.6,0.75476]
[1749050042908,0.75469,2648.9,2648.8,3.2078]
[1749050043109,43.065,2649.1,2648.8,3.2078]
[1749050043110,38.089,2649.1,2648.8,3.2078]
[1749050043306,0.75469,2648.9,2648.8,3.2078]
[1749050043608,0.75467,2649.0,2648.8,3.2078]
[1749050043808,4.976,2649.1,2648.9,2.0791]
[1749050044103,4.976,2649.4,2649.3,0.75457]
[1749050044311,3.2078,2649.5,2649.1,3.2078]
[1749050044312,5.73053,2649.5,2649.1,3.2078]
[1749050044501,3.2078,2649.8,2649.2,1.2705]
[1749050044708,8.1838,2649.8,2649.2,1.2705]
[1749050044906,0.75451,2649.6,2649.4,0.75453]
[1749050045109,0.75451,2649.6,2649.5,1.2705]
[1749050045305,0.75449,2649.6,2649.5,1.2705]
[1749050045706,0.75449,2649.6,2649.5,29.4]
[1749050045907,5.73049,2649.6,2649.5,29.4]
[1749050046312,0.7546,2649.2,2649.1,3.2078]
[1749050046511,0.75466,2649.0,2648.9,0.8857]
[1749050046814,0.75466,2649.0,2648.9,30.2857]
[1749050047203,4.975,2649.3,2648.9,31.04038]
[1749050047410,0.75465,2649.1,2649.0,4.4652]
[1749050047806,0.75465,2649.1,2649.0,3.2078]
[1749050048116,0.75466,2649.0,2648.9,30.2857]
[1749050048408,0.75466,2649.0,2648.9,29.4]
[1749050049015,0.75471,2648.8,2648.7,3.2078]
[1749050049213,5.72971,2648.8,2648.7,3.2078]
[1749050049417,5.72971,2648.8,2648.7,32.6078]
[1749050049616,0.75471,2648.8,2648.7,32.6078]
[1749050049811,0.75471,2648.8,2648.7,33.8652]
[1749050050108,0.75471,2648.8,2648.7,32.6078]
[1749050050309,0.75471,2648.8,2648.7,29.4]
[1749050050516,0.7548,2648.5,2648.4,3.2078]
[1749050050715,0.7548,2648.5,2648.4,4.1004]
[1749050052006,0.75483,2648.4,2648.3,2.78e-06]
[1749050052209,0.75483,2648.4,2648.2,2.2e-07]
[1749050052210,0.75486,2648.3,2648.2,2.2e-07]
[1749050052415,5.75486,2648.3,2648.2,2.2e-07]
[1749050052619,7.06286,2648.3,2648.2,2.2e-07]
[1749050053007,5.75486,2648.3,2648.2,2.2e-07]
[1749050053205,0.75486,2648.3,2648.2,2.2e-07]
[1749050053407,30.21286,2648.3,2648.2,2.2e-07]
[1749050053611,0.75514,2647.3,2647.2,4.4485]
[1749050054410,0.75509,2647.5,2647.3,0.75513]
[1749050054612,18.206,2647.5,2647.2,5.20366]
[1749050054816,18.206,2647.5,2647.3,2.05394]
[1749050055014,1.62162,2647.8,2647.3,1.2988]
[1749050055214,7.21179,2648.3,2647.7,3.2078]
[1749050055516,0.755,2647.8,2647.7,3.2078]
[1749050056017,0.75509,2647.5,2647.4,3.2078]
[1749050056517,0.75514,2647.3,2647.2,0.2968958]
[1749050056720,0.75517,2647.2,2647.1,0.00567022]
[1749050056917,0.75517,2647.2,2647.1,0.30958958]
[1749050057223,0.8176,2647.4,2647.1,0.00567022]
[1749050057413,0.75517,2647.2,2647.1,0.00567022]
[1749050057721,0.75514,2647.3,2647.1,0.00567022]
[1749050057919,0.75517,2647.2,2647.1,0.00567022]
[1749050058117,5.91294,2647.8,2647.1,0.00567022]
[1749050058321,19.0516,2647.8,2647.4,3.2078]
[1749050058620,0.75506,2647.6,2647.5,0.864]
[1749050059914,0.75517,2647.2,2647.1,4.69762745]
[1749050060115,0.75517,2647.2,2647.1,5.53212745]
[1749050060624,0.75517,2647.2,2647.1,0.84017022]
[1749050060922,0.75517,2647.2,2647.1,0.00567022]
[1749050061321,8.96297,2647.2,2647.1,0.00567022]
[1749050062020,5.75517,2647.2,2647.1,0.00567022]
[1749050062225,24.01717,2647.2,2647.1,0.00567022]
[1749050062719,24.01917,2647.2,2647.1,0.00567022]
[1749050063829,5.77717,2647.2,2647.1,0.00567022]
[1749050064430,5.022,2647.2,2647.1,0.00567022]
[1749050064632,18.98513,2647.4,2647.1,2.00475022]
[1749050064831,0.75514,2647.3,2647.2,1.2439]
[1749050065925,7.22065,2647.8,2647.3,0.75512]
[1749050066126,0.75505,2647.7,2647.5,3.96287]
[1749050066332,0.75517,2647.2,2647.1,0.00567022]
[1749050070034,0.01138981,2647.3,2647.1,0.00567022]
[1749050070333,0.01138981,2647.3,2647.2,0.75517]
[1749050071330,0.01138981,2647.3,2647.2,5.75517]
[1749050071634,0.01138981,2647.3,2647.2,10.77817]
[1749050072231,0.01138981,2647.3,2647.2,5.75517]
[1749050072743,0.01138981,2647.3,2647.2,10.77817]
[1749050073337,0.01138981,2647.3,2647.2,40.17817]
[1749050075738,0.01138981,2647.3,2647.2,35.17817]
[1749050075941,0.01138981,2647.3,2647.2,30.15517]
[1749050076146,0.01138981,2647.3,2647.2,35.17817]
[1749050077141,0.76652981,2647.3,2647.2,34.422]
[1749050077632,0.76652981,2647.3,2647.2,35.17717]
[1749050077840,0.76652981,2647.3,2647.2,29.4]
[1749050078145,18.94252981,2647.3,2647.2,29.4]
[1749050080455,0.75517,2647.2,2647.1,2.2e-07]
[1749050080655,2.04587,2647.2,2647.1,2.2e-07]
[1749050080946,10.05926034,2647.2,2647.1,2.2e-07]
[1749050081251,21.93156034,2647.2,2647.1,2.2e-07]
[1749050081549,5.05926034,2647.2,2647.1,2.2e-07]
[1749050081751,28.27426034,2647.2,2647.1,2.2e-07]
[1749050082451,5.05926034,2647.2,2647.1,2.2e-07]
[1749050082654,21.19639034,2647.2,2647.1,2.2e-07]
[1749050082853,18.93817,2647.2,2647.1,2.2e-07]
[1749050083054,18.94417,2647.2,2647.1,2.2e-07]
[1749050083855,18.93517,2647.2,2647.1,2.2e-07]
[1749050084352,18.93317,2647.2,2647.1,2.2e-07]
[1749050085441,18.92117,2647.2,2647.1,2.2e-07]
[1749050086048,18.91617,2647.2,2647.1,2.2e-07]
[1749050086246,0.01138981,2647.3,2647.2,0.75517]
[1749050086456,0.01138981,2647.3,2647.2,3.2078]
[1749050086457,0.76653981,2647.3,2647.2,3.2078]
[1749050086852,0.01138981,2647.3,2647.2,3.96297]
[1749050087153,0.01138981,2647.3,2647.2,5.18257]
[1749050088657,0.76652981,2647.3,2647.2,4.4274]
[1749050088858,0.76652981,2647.3,2647.2,5.18257]
[1749050089061,0.01138981,2647.3,2647.2,5.18257]
[1749050089556,0.76652981,2647.3,2647.2,3.2078]
[1749050090148,0.75517,2647.2,2647.1,2.2e-07]
[1749050090349,0.75517,2647.2,2647.1,3.20780022]
[1749050090965,0.76653981,2647.3,2647.1,3.20780022]
[1749050091153,0.01138981,2647.3,2647.1,3.20780022]
[1749050091557,0.76653981,2647.3,2647.1,3.20780022]
[1749050091856,0.76653981,2647.3,2647.1,3.96298022]
[1749050092059,0.76653981,2647.3,2647.2,0.75517]
[1749050092255,0.76653981,2647.3,2647.1,3.20780022]
[1749050092458,0.76655981,2647.3,2647.1,3.96298022]
[1749050092758,0.76655981,2647.3,2647.2,0.75517]
[1749050093059,0.76652981,2647.3,2647.2,0.75517]
[1749050093559,0.76652981,2647.3,2647.1,3.96298022]
[1749050093959,0.76652981,2647.3,2647.2,0.75517]
[1749050094252,0.01138981,2647.3,2647.2,0.75517]
[1749050095255,0.76652981,2647.3,2647.2,0.75517]
[1749050097655,0.01138981,2647.3,2647.1,3.20780022]
[1749050097857,0.01138981,2647.3,2647.2,0.75517]
[1749050098155,0.76652981,2647.3,2647.2,0.75517]
[1749050098361,0.76652981,2647.3,2647.2,1.318]
[1749050098558,0.75517,2647.2,2647.1,3.20780022]
[1749050098760,0.75517,2647.2,2647.1,3.96300022]
[1749050098958,0.76653981,2647.3,2647.2,0.75517]
[1749050099363,0.75517,2647.2,2647.1,3.96298022]
[1749050099560,0.75517,2647.2,2647.1,3.20780022]
[1749050101059,2.03617,2647.2,2647.1,2.2e-07]
[1749050101459,20.11717,2647.2,2647.1,2.2e-07]
[1749050101965,0.76653981,2647.3,2647.1,3.20780022]
[1749050102163,0.01138981,2647.3,2647.2,0.75517]
[1749050102365,0.00567022,2647.5,2647.4,0.75511]
[1749050102558,0.00567022,2647.5,2647.4,8.96291]
[1749050102765,6.21911477,2648.7,2647.4,26.3168]
[1749050103066,0.75477,2648.6,2648.5,3.2078]
[1749050103360,3.86081477,2648.9,2648.5,4.0311]
[1749050103561,0.75477,2648.6,2648.5,4.0311]
[1749050103765,0.75477,2648.6,2648.5,29.4]
[1749050103965,0.75483,2648.4,2648.3,0.00567022]
[1749050104369,18.88383,2648.4,2648.3,0.00567022]
[1749050105368,0.75481,2648.5,2648.3,0.00567022]
[1749050105572,0.75478,2648.6,2648.3,0.76051022]
[1749050105872,0.8495,2648.9,2648.5,0.75479]
[1749050106066,0.75475,2648.7,2648.5,0.75479]
[1749050106573,4.968,2648.8,2648.5,0.75479]
[1749050106775,0.8495,2648.9,2648.6,3.2078]
[1749050107065,5.72253,2649.5,2648.8,1.88676]
[1749050107269,0.75457,2649.4,2649.1,3.9624]
[1749050107565,1.88642,2649.4,2648.8,3.2078]
[1749050107769,0.75469,2648.9,2648.8,3.2078]
[1749050107966,0.75464,2649.1,2648.8,3.9625]
[1749050108269,1.2804,2649.3,2648.8,3.2078]
[1749050108466,5.8644,2649.5,2648.8,3.2078]
[1749050108669,5.8644,2649.5,2648.9,1.2921]
[1749050108967,5.8644,2649.5,2649.0,0.75464]
[1749050109276,0.7546,2649.2,2649.1,3.2078]
[1749050109460,0.15416629,2650.1,2649.3,1.88641]
[1749050109661,0.15416629,2650.1,2650.0,0.75437]
[1749050110169,0.15416629,2650.1,2650.0,30.15437]
[1749050110367,0.15416629,2650.1,2650.0,31.44647]
[1749050111063,0.15416629,2650.1,2650.0,29.4]